Workbook

Sheet Gráfica
D3: Tasladar en X | F3: Extension | H3: c | J3: x
D5: 0 | F5: 100 | H5: 950 | J5: 50
B35: Trabajo realizado con el apoyo del Programa UNAM-DGAPA-PAPIME PE110517
M52: x | O52: xJ1(x) | P52: cJ0(x)
L53: 1 | M53: =((L53*$J$5)/$F$5)+$D$5 -> 0.5 | O53: =BESSELJ(M53,1)*M53 -> 0.1211342288 | P53: =BESSELJ(M53,0)*$H$5 -> 891.5463171 | Q53: =O53-P53 -> -891.4251828
L54: 2 | M54: =((L54*$J$5)/$F$5)+$D$5 -> 1 | O54: =BESSELJ(M54,1)*M54 -> 0.4400505857 | P54: 726.9377996 | Q54: =O54-P54 -> -726.497749
L55: 3 | M55: 1.5 | O55: =BESSELJ(M55,1)*M55 -> 0.8369047618 | P55: 486.2362877 | Q55: =O55-P55 -> -485.3993829
L56: 4 | M56: 2 | O56: =BESSELJ(M56,1)*M56 -> 1.153449616 | P56: 212.6962428 | Q56: =O56-P56 -> -211.5427932
L57: 5 | M57: 2.5 | O57: =BESSELJ(M57,1)*M57 -> 1.242735256 | P57: -45.96458704 | Q57: =O57-P57 -> 47.20732229
L58: 6 | M58: 3 | O58: =BESSELJ(M58,1)*M58 -> 1.017176875 | P58: -247.0493598 | Q58: =O58-P58 -> 248.0665367
L59: 7 | M59: 3.5 | O59: 0.4808213451 | P59: -361.1213536 | Q59: 361.602175
L60: 8 | M60: 4 | O60: -0.2641733118 | P60: -377.2923168 | Q60: 377.0281435
L61: 9 | M61: 4.5 | O61: -1.039771945 | P61: -304.5153836 | Q61: 303.4756116
L62: 10 | M62: 5 | O62: -1.637895693 | P62: -168.7169354 | Q62: 167.0790397
L63: 11 | M63: 5.5 | O63: -1.877910189 | P63: -6.501674628 | Q63: 4.623764439
L64: 12 | M64: 6 | O64: -1.660103155 | P64: 143.1129965 | Q64: -144.7730997
L65: 13 | M65: 6.5 | O65: -0.9999684744 | P65: 247.0898733 | Q65: -248.0898418
L66: 14 | M66: 7 | O66: -0.03277978009 | P66: 285.0753099 | Q66: -285.1080897
L67: 15 | M67: 7.5 | O67: 1.014363179 | P67: 253.0226747 | Q67: -252.0083115
L68: 16 | M68: 8 | O68: 1.877027092 | P68: 163.068267 | Q68: -161.1912399
L69: 17 | M69: 8.5 | O69: 2.321479976 | P69: 39.84228939 | Q69: -37.52080942
L70: 18 | M70: 9 | O70: 2.207766705 | P70: -85.81693049 | Q70: 88.0246972
L71: 19 | M71: 9.5 | O71: 1.531991607 | P71: -184.2323102 | Q71: 185.7643018
L72: 20 | M72: 10 | O72: 0.4347224965 | P72: -233.6389762 | Q72: 234.0736987
L73: 21 | M73: 10.5 | O73: -0.8279199241 | P73: -224.8157848 | Q73: 223.9878649
L74: 22 | M74: 11 | O74: -1.944628201 | P74: -162.6307855 | Q74: 160.6861573
L75: 23 | M75: 11.5 | O75: -2.62634342 | P75: -64.27125083 | Q75: 61.64490741
L76: 24 | M76: 12 | O76: -2.681356615 | P76: 45.30484513 | Q76: -47.98620174
L77: 25 | M77: 12.5 | O77: -2.068542226 | P77: 139.5398519 | Q77: -141.6083941
L78: 26 | M78: 13 | O78: -0.9141327074 | P78: 196.5797972 | Q78: -197.4939299
L79: 27 | M79: 13.5 | O79: 0.5136647524 | P79: 204.2397076 | Q79: -203.7260428
L80: 28 | M80: 14 | O80: 1.867249856 | P80: 162.5198023 | Q80: -160.6525525
L81: 29 | M81: 14.5 | O81: 2.804724342 | P81: 83.1676247 | Q81: -80.36290036
L82: 30 | M82: 15 | O82: 3.076557964 | P82: -13.51324907 | Q82: 16.58980703
L83: 31 | M83: 15.5 | O83: 2.591802459 | P83: -103.7691182 | Q83: 106.3609207
L84: 32 | M84: 16 | O84: 1.44635394 | P84: -166.1541202 | Q84: 167.6004741
L85: 33 | M85: 16.5 | O85: -0.09510951361 | P85: =BESSELJ(M85,0)*$H$5 -> -186.5616583 | Q85: 186.4665487
L86: 34 | M86: 17 | O86: -1.660363732 | P86: -161.3615396 | Q86: 159.7011758
L87: 35 | M87: 17.5 | O87: -2.859848508 | P87: -97.95487839 | Q87: 95.09502989
L88: 36 | M88: 18 | O88: -3.383906971 | P88: -12.68801554 | Q88: 9.304108569
L89: 37 | M89: 18.5 | O89: -3.082721585 | P89: 73.30658025 | Q89: -76.38930183
L90: 38 | M90: 19 | O90: -2.008326766 | P90: 139.2979676 | Q90: -141.3062944
L91: 39 | M91: 19.5 | O91: -0.4071027865 | P91: 169.9111357 | Q91: -170.3182384
L92: 40 | M92: 20 | O92: 1.336662286 | P92: 158.6734311 | Q92: -157.3367689
L93: 41 | M93: 20.5 | O93: 2.793220744 | P93: 109.3421123 | Q93: -106.5488916
L94: 42 | M94: 21 | O94: 3.593525319 | P94: 34.75011755 | Q94: -31.15659223
L95: 43 | M95: 21.5 | O95: 3.522819424 | P95: -46.49494144 | Q95: 50.01776086
L96: 44 | M96: 22 | O96: 2.577911147 | P96: -114.6189018 | Q96: 117.196813
L97: 45 | M97: 22.5 | O97: 0.9729456714 | P97: -153.4633011 | Q97: 154.4362468
L98: 46 | M98: 23 | O98: -0.908944344 | P98: -154.2921423 | Q98: 153.3831979
L99: 47 | M99: 23.5 | O99: -2.607234217 | P99: -117.73182 | Q99: 115.1245858
L100: 48 | M100: 24 | O100: -3.696913374 | P100: -53.41876054 | Q100: 49.72184717
L101: 49 | M101: 24.5 | O101: -3.894970912 | P101: 22.51256195 | Q101: -26.40753286
L102: 50 | M102: 25 | O102: -3.133756113 | P102: 91.45344403 | Q102: -94.58720014
L103: 51 | M103: 25.5 | O103: -1.582237624 | P103: 136.8590496 | Q103: -138.4412872
L104: 52 | M104: 26 | O104: 0.3911889813 | P104: 148.1993497 | Q104: -147.8081608
L105: 53 | M105: 26.5 | O105: 2.306236832 | P105: 123.3837448 | Q105: -121.077508
L106: 54 | M106: 27 | O106: 3.687787466 | P106: 69.10482218 | Q106: -65.41703471
L107: 55 | M107: 27.5 | O107: 4.183901966 | P107: -0.9426173713 | Q107: 5.126519338
L108: 56 | M108: 28 | O108: 3.655441598 | P108: -69.49915994 | Q108: 73.15460154
L109: 57 | M109: 28.5 | O109: 2.214488661 | P109: -119.9765748 | Q109: 122.1910634
L110: 58 | M110: 29 | O110: 0.2010919313 | P110: -140.4563264 | Q110: 140.6574184
L111: 59 | M111: 29.5 | O111: -1.896979122 | P111: -126.4904654 | Q111: 124.5934863
L112: 60 | M112: 30 | O112: -3.562531827 | P112: -82.04958446 | Q112: 78.48705263
L113: 61 | M113: 30.5 | O113: -4.376576099 | P113: -18.42026687 | Q113: 14.04369077
L114: 62 | M114: 31 | O114: -4.12375377 | P114: 48.64773796 | Q114: -52.77149173
L115: 63 | M115: 31.5 | O115: -2.849039253 | P115: 102.8269803 | Q115: -105.6760196
L116: 64 | M116: 32 | O116: -0.8508489061 | P116: 131.1750592 | Q116: -132.0259081
L117: 65 | M117: 32.5 | O117: 1.388753995 | P117: =BESSELJ(M117,0)*$H$5 -> 127.2157134 | Q117: -125.8269594
L118: 66 | M118: =((L118*$J$5)/$F$5)+$D$5 -> 33 | O118: 3.320448392 | P118: 92.40713867 | Q118: -89.08669028
L119: 67 | M119: 33.5 | O119: 4.462513718 | P119: 35.6672181 | Q119: -31.20470438
L120: 68 | M120: 34 | O120: 4.521020127 | P120: -28.90013139 | Q120: 33.42115152
L121: 69 | M121: 34.5 | O121: 3.465350652 | P121: -85.50062195 | Q121: 88.9659726
L122: 70 | M122: 35 | O122: =BESSELJ(M122,1)*M122 -> 1.539682971 | P122: -120.5033986 | Q122: =O122-P122 -> 122.0430815
L123: 71 | M123: 35.5 | O123: -0.7933529347 | P123: -125.7149857 | Q123: 124.9216328
L124: 72 | M124: 36 | O124: -2.963873124 | P124: -100.2890126 | Q124: 97.32513949
L125: 73 | M125: 36.5 | O125: -4.434051261 | P125: -50.82846036 | Q125: 46.3944091
L126: 74 | M126: 37 | O126: -4.831461413 | P126: 10.31925116 | Q126: -15.15071257
L127: 75 | M127: 37.5 | O127: -4.043375387 | P127: 68.13656978 | Q127: -72.17994517
L128: 76 | M128: 38 | O128: -2.248151811 | P128: 108.6161021 | Q128: -110.8642539
L129: 77 | M129: 38.5 | O129: 0.1248968357 | P129: 122.146901 | Q129: -122.0220042
L130: 78 | M130: 39 | O130: 2.498188032 | P130: 105.7898131 | Q130: -103.291625
L131: 79 | M131: 39.5 | O131: 4.286537868 | P131: 63.90469364 | Q131: -59.61815577
L132: 80 | M132: 40 | O132: 5.041532707 | P132: 6.998546126 | Q132: -1.957013419
L133: 81 | M133: 40.5 | O133: 4.563966452 | P133: -50.90354178 | Q133: 55.46750823
L134: 82 | M134: 41 | O134: 2.956151722 | P134: -95.70849961 | Q134: 98.66465133
L135: 83 | M135: 41.5 | O135: 0.6004268378 | P135: -116.679308 | Q135: 117.2797348
L136: 84 | M136: 42 | O136: -1.931743297 | P136: -109.0025219 | Q136: 107.0707786
L137: 85 | M137: 42.5 | O137: -4.018465378 | P137: -74.88657505 | Q137: 70.86810967
L138: 86 | M138: 43 | O138: -5.140234353 | P138: -22.94182327 | Q138: 17.80158892
L139: 87 | M139: 43.5 | O139: -5.009297698 | P139: 33.98695024 | Q139: -38.99624794
L140: 88 | M140: 44 | O140: -3.643347809 | P140: 81.9913643 | Q140: -85.63471211
L141: 89 | M141: 44.5 | O141: -1.364700057 | P141: 109.4922014 | Q141: -110.8569015
L142: 90 | M142: 45 | O142: 1.275698441 | P142: 110.0277371 | Q142: -108.7520387
L143: 91 | M143: 45.5 | O143: 3.631527876 | P143: 83.76728853 | Q143: -80.13576065
L144: 92 | M144: 46 | O144: 5.119378473 | P144: 37.39656103 | Q144: -32.27718256
L145: 93 | M145: 46.5 | O145: 5.363275207 | P145: -17.57943049 | Q145: 22.9427057
L146: 94 | M146: 47 | O146: 4.289631916 | P146: -67.68635034 | Q146: 71.97598226
L147: 95 | M147: 47.5 | O147: 2.148667749 | P147: -100.7785784 | Q147: 102.9272462
L148: 96 | M148: 48 | O148: -0.5437897591 | P148: -108.9791344 | Q148: 108.4353446
L149: 97 | M149: 48.5 | O149: -3.130608383 | P149: -90.55082773 | Q149: 87.42021935
L150: 98 | M150: 49 | O150: -4.973800266 | P150: -50.2550317 | Q150: 45.28123144
L151: 99 | M151: 49.5 | O151: -5.61192371 | P151: 1.873494329 | Q151: -7.485418039
L152: 100 | M152: 50 | O152: -4.875591404 | P152: 53.02171122 | Q152: -57.89730262

Sheet Cilindro
A1: Datos | F1: Raíces de la Ecuación tracendental
A2: Dimensiónes
B3: cm | C3: m
A4: Diametro, D | B4: 15 | C4: =B4/100 -> 0.15 | F4: Bi | G4: b1 | H4: b2 | I4: b3 | J4: b4 | K4: b5 | L4: b6
A5: Radio, R | B5: =B4/2 -> 7.5 | C5: =C4/2 -> 0.075 | F5: =C22 -> 2.25 | G5: =BB42 -> 2.404024086 | H5: =BB45 -> 5.518238389 | I5: =BB48 -> 8.650843891 | J5: =BB51 -> 11.78760462 | K5: =BB54 -> 14.92594166 | L5: =VLOOKUP(1,AZ57:BB58,3) -> 18.06504136
A6: Condiciones Iniciales
B7: °C | C7: K | F7: Solución transitoria de conducción de calor de una dimensión
A8: Temperatura Inicial, Ti | B8: 500 | C8: =B8+273.15 -> 773.15
A9: Temperatura del Cuarto, Ta | B9: 50 | C9: =B9+273.15 -> 323.15
A10: Propiedades Termicas
C11: Js-1m-1°C-1
A12: Conductividad termica, k | B12: 93 | C12: 100
C13: kg m-3
A14: Densidad, r | C14: 1700
C15: J kg-1°C-1
A16: Capacidad Calorífica, Cp | C16: 350
C17: Js-m-2°C-1
A18: Coeficiente de Transferencia de Calor, h | C18: 3000
C19: m2s-1
A20: Difusividad Térmica, a | C20: =$C$12/($C$16*$C$14) -> 0.0001680672269
A22: Número Biot, Bi | C22: =$C$18*$C$5/$C$12 -> 2.25
B24: r, m | C24: r/R
A25: 1 | B25: =(A25*$C$5)/4 -> 0.01875 | C25: =(B25)/$C$5 -> 0.25
A26: 2 | B26: =(A26*$C$5)/4 -> 0.0375 | C26: =(B26)/$C$5 -> 0.5
A27: 3 | B27: =(A27*$C$5)/4 -> 0.05625 | C27: =(B27)/$C$5 -> 0.75
A28: 4 | B28: =(A28*$C$5)/4 -> 0.075 | C28: =(B28)/$C$5 -> 1
F30: =C24 -> r/R | G30: =($B25)/$C$5 -> 0.25
F31: t, [s] | G31: Fo | H31: n=1 | I31: n=2 | J31: n=3 | K31: n=4 | L31: n=5 | M31: n=6 | O31: Q (r,t) | P31: Q (r,t) | Q31: Q (r,t) | R31: Q (r,t) | S31: Q (r,t) | T31: Q (r,t) | V31: T (r,t) | W31: T (r,t) | X31: T (r,t) | Y31: T (r,t) | Z31: T (r,t) | AA31: T (r,t)
F32: 0 | G32: =($C$20*F32)/$C$5^2 -> 0 | H32: =(2/G$5)*(((BESSELJ(G$5,1)))/((((BESSELJ(G$5,0))^2))+((BESSELJ(G$5,1))^2)))*(EXP(-(G$5^2*$G32)))*((BESSELJ((G$5*($B$25/$C$5)),0))) -> 1.460545839 | I32: =(2/H$5)*(((BESSELJ(H$5,1))*(BESSELJ((H$5*($B$25/$C$5)),0)))/((((BESSELJ(H$5,0))^2))+((BESSELJ(H$5,1))^2)))*(EXP(-(H$5^2*$G32))) -> -0.61534074 | J32: 0.1116964698 | K32: 0.176228225 | L32: -0.259873671 | M32: 0.1867343594 | O32: =((H32)) -> 1.460545839 | P32: =((H32+I32)) -> 0.8452050994 | Q32: =((H32+I32+J32)) -> 0.9569015692 | R32: =((H32+I32+J32+K32)) -> 1.133129794 | S32: =((H32+I32+J32+K32+L32)) -> 0.8732561232 | T32: =((H32+I32+J32+K32+L32+M32)) -> 1.059990483 | V32: =((H32)*($B$8-$B$9))+$B$9 -> 707.2456277 | W32: =((H32+I32)*($B$8-$B$9))+$B$9 -> 430.3422947 | X32: =((H32+I32+J32)*($B$8-$B$9))+$B$9 -> 480.6057061 | Y32: =((H32+I32+J32+K32)*($B$8-$B$9))+$B$9 -> 559.9084074 | Z32: =((H32+I32+J32+K32+L32)*($B$8-$B$9))+$B$9 -> 442.9652554 | AA32: =((H32+I32+J32+K32+L32+M32)*($B$8-$B$9))+$B$9 -> 526.9957172
F33: 4 | G33: 0.1195144725 | H33: 0.7320521215 | I33: -0.0161649667 | J33: 1.457669253e-05 | K33: 1.081613098e-08 | L33: -7.100506099e-13 | M33: 2.14991213e-18 | O33: 0.7320521215 | P33: 0.7158871548 | Q33: 0.7159017315 | R33: 0.7159017423 | S33: 0.7159017423 | T33: 0.7159017423 | V33: 379.4234547 | W33: 372.1492197 | X33: 372.1557792 | Y33: 372.155784 | Z33: 372.155784 | AA33: 372.155784
F34: 8 | G34: 0.2390289449 | H34: 0.366917829 | I34: -0.0004246527676 | J34: 1.902297947e-09 | K34: 6.638476298e-16 | L34: -1.940065212e-24 | M34: 2.475239254e-35 | O34: 0.366917829 | P34: 0.3664931762 | Q34: 0.3664931781 | R34: 0.3664931781 | S34: 0.3664931781 | T34: 0.3664931781 | V34: 215.1130231 | W34: 214.9219293 | X34: 214.9219302 | Y34: 214.9219302 | Z34: 214.9219302 | AA34: 214.9219302
F35: 12 | G35: 0.3585434174 | H35: 0.183905885 | I35: -1.115560437e-05 | J35: 2.482550463e-13 | K35: 4.074411417e-23 | L35: -5.300823596e-36 | M35: 2.849795246e-52 | O35: 0.183905885 | P35: 0.1838947294 | Q35: 0.1838947294 | R35: 0.1838947294 | S35: 0.1838947294 | T35: 0.1838947294 | V35: 132.7576482 | W35: 132.7526282 | X35: 132.7526282 | Y35: 132.7526282 | Z35: 132.7526282 | AA35: 132.7526282
F36: 16 | G36: 0.4780578898 | H36: 0.0921769722 | I36: -2.930571004e-07 | J36: 3.239795749e-17 | K36: 2.500698601e-30 | L36: -1.4483395e-47 | M36: 3.281029472e-69 | O36: 0.0921769722 | P36: 0.09217667915 | Q36: 0.09217667915 | R36: 0.09217667915 | S36: 0.09217667915 | T36: 0.09217667915 | V36: 91.47963749 | W36: 91.47950562 | X36: 91.47950562 | Y36: 91.47950562 | Z36: 91.47950562 | AA36: 91.47950562
F37: 20 | G37: 0.5975723623 | H37: 0.04620077387 | I37: -7.698593577e-09 | J37: 4.228021404e-21 | K37: 1.534821316e-37 | L37: -3.957285636e-59 | M37: 3.777518546e-86 | O37: 0.04620077387 | P37: 0.04620076617 | Q37: 0.04620076617 | R37: 0.04620076617 | S37: 0.04620076617 | T37: 0.04620076617 | V37: 70.79034824 | W37: 70.79034478 | X37: 70.79034478 | Y37: 70.79034478 | Z37: 70.79034478 | AA37: 70.79034478 | BA37: Cantidad ded β | BB37: c | BC37: x
F38: 24 | G38: 0.7170868347 | H38: 0.0231566676 | I38: -2.022416211e-10 | J38: 5.517682712e-25 | K38: 9.42007354e-45 | L38: -1.081245772e-70 | M38: 4.349136907e-103 | O38: 0.0231566676 | P38: 0.0231566674 | Q38: 0.0231566674 | R38: 0.0231566674 | S38: 0.0231566674 | T38: 0.0231566674 | V38: 60.42050042 | W38: 60.42050033 | X38: 60.42050033 | Y38: 60.42050033 | Z38: 60.42050033 | AA38: 60.42050033 | BA38: 6 | BB38: =C18 -> 3000 | BC38: 30
F39: 28 | G39: 0.8366013072 | H39: 0.0116065427 | I39: -5.312876032e-12 | J39: 7.200725729e-29 | K39: 5.781636245e-52 | L39: -2.95427858e-82 | M39: 5.007253201e-120 | O39: 0.0116065427 | P39: 0.01160654269 | Q39: 0.01160654269 | R39: 0.01160654269 | S39: 0.01160654269 | T39: 0.01160654269 | V39: 55.22294421 | W39: 55.22294421 | X39: 55.22294421 | Y39: 55.22294421 | Z39: 55.22294421 | AA39: 55.22294421 | BA39: min | BB39: x | BC39: max | BD39: xJ1(x) | BE39: cJ0(x) | BF39: RESTA | BG39: cond
F40: 32 | G40: 0.9561157796 | H40: 0.005817410159 | I40: -1.395689551e-13 | J40: 9.397142557e-33 | K40: 3.548519821e-59 | L40: -8.071950113e-94 | M40: 5.764956395e-137 | O40: 0.005817410159 | P40: 0.005817410159 | Q40: 0.005817410159 | R40: 0.005817410159 | S40: 0.005817410159 | T40: 0.005817410159 | V40: 52.61783457 | W40: 52.61783457 | X40: 52.61783457 | Y40: 52.61783457 | Z40: 52.61783457 | AA40: 52.61783457 | AZ40: =IF(ROUND(BF40,0)=0,1,0) -> 0 | BA40: 0 | BB40: 1 | BC40: 1 | BD40: =BESSELJ(BB40,1)*BB40 -> 0.4400505857 | BE40: =BESSELJ(BB40,0)*$BB$38 -> 2295.593051 | BF40: =BD40-BE40 -> -2295.153001 | BG40: =IF(ROUND(BF40,0)=0,1*ROWS(BF40),FALSE) -> FALSE
F41: 36 | G41: 1.075630252 | H41: 0.002915791709 | I41: -3.666468616e-15 | J41: 1.226352614e-36 | K41: 2.177928943e-66 | L41: -2.20549203e-105 | M41: 6.637316089e-154 | O41: 0.002915791709 | P41: 0.002915791709 | Q41: 0.002915791709 | R41: 0.002915791709 | S41: 0.002915791709 | T41: 0.002915791709 | V41: 51.31210627 | W41: 51.31210627 | X41: 51.31210627 | Y41: 51.31210627 | Z41: 51.31210627 | AA41: 51.31210627 | AZ41: =IF(ROUND(BF41,0)=0,1,0) -> 0 | BA41: 1 | BB41: 2 | BC41: 2 | BD41: 1.153449616 | BE41: 671.6723457 | BF41: -670.5188961 | BG41: =IF(ROUND(BF41,0)=0,1*ROWS($BF$40:BF41),FALSE) -> FALSE
F42: 40 | G42: 1.195144725 | H42: 0.001461447802 | I42: =(2/H$5)*(((BESSELJ(H$5,1))*(BESSELJ((H$5*($B$25/$C$5)),0)))/((((BESSELJ(H$5,0))^2))+((BESSELJ(H$5,1))^2)))*(EXP(-(H$5^2*$G42))) -> -9.63179247e-17 | J42: 1.600423454e-40 | K42: 1.336719173e-73 | L42: -6.026047021e-117 | M42: 7.641682234e-171 | O42: 0.001461447802 | P42: 0.001461447802 | Q42: 0.001461447802 | R42: 0.001461447802 | S42: 0.001461447802 | T42: 0.001461447802 | V42: 50.65765151 | W42: 50.65765151 | X42: 50.65765151 | Y42: 50.65765151 | Z42: 50.65765151 | AA42: 50.65765151 | AZ42: 1 | BA42: 2 | BB42: 2.404024086 | BC42: 3 | BD42: 1.248458769 | BE42: 1.248458638 | BF42: 1.312907889e-07 | BG42: =IF(ROUND(BF42,0)=0,1*ROWS($BF$40:BF42),FALSE) -> 3
F43: 44 | G43: 1.314659197 | H43: 0.0007325042013 | I43: -2.530266475e-18 | J43: 2.088596055e-44 | K43: 8.204207737e-81 | L43: -1.646491677e-128 | M43: 8.798030195e-188 | O43: 0.0007325042013 | P43: 0.0007325042013 | Q43: 0.0007325042013 | R43: 0.0007325042013 | S43: 0.0007325042013 | T43: 0.0007325042013 | V43: 50.32962689 | W43: 50.32962689 | X43: 50.32962689 | Y43: 50.32962689 | Z43: 50.32962689 | AA43: 50.32962689 | AZ43: 0 | BA43: 3 | BB43: 3 | BC43: 4 | BD43: 1.017176875 | BE43: -780.1558732 | BF43: 781.17305 | BG43: =IF(ROUND(BF43,0)=0,1*ROWS($BF$40:BF43),FALSE) -> FALSE
F44: 48 | G44: 1.434173669 | H44: 0.0003671444196 | I44: -6.646995825e-20 | J44: 2.725674551e-48 | K44: 5.035390075e-88 | L44: -4.498695134e-140 | M44: 1.012935803e-204 | O44: 0.0003671444196 | P44: 0.0003671444196 | Q44: 0.0003671444196 | R44: 0.0003671444196 | S44: 0.0003671444196 | T44: 0.0003671444196 | V44: 50.16521499 | W44: 50.16521499 | X44: 50.16521499 | Y44: 50.16521499 | Z44: 50.16521499 | AA44: 50.16521499 | AZ44: 0 | BA44: 4 | BB44: 5 | BC44: 5 | BD44: -1.637895693 | BE44: -532.7903223 | BF44: 531.1524266 | BG44: =IF(ROUND(BF44,0)=0,1*ROWS($BF$40:BF44),FALSE) -> FALSE
F45: 52 | G45: 1.553688142 | H45: 0.0001840194563 | I45: -1.746162072e-21 | J45: 3.557079284e-52 | K45: 3.090505997e-95 | L45: -1.229174626e-151 | M45: 1.16621439e-221 | O45: 0.0001840194563 | P45: 0.0001840194563 | Q45: 0.0001840194563 | R45: 0.0001840194563 | S45: 0.0001840194563 | T45: 0.0001840194563 | V45: 50.08280876 | W45: 50.08280876 | X45: 50.08280876 | Y45: 50.08280876 | Z45: 50.08280876 | AA45: 50.08280876 | AZ45: 1 | BA45: 5 | BB45: 5.518238389 | BC45: 6 | BD45: -1.878285136 | BE45: -1.878284871 | BF45: -2.653076006e-07 | BG45: =IF(ROUND(BF45,0)=0,1*ROWS($BF$40:BF45),FALSE) -> 6
F46: 56 | G46: 1.673202614 | H46: 9.223389622e-05 | I46: -4.58715796e-23 | J46: 4.64208503e-56 | K46: 1.896819745e-102 | L46: -3.358463324e-163 | M46: 1.342687264e-238 | O46: 9.223389622e-05 | P46: 9.223389622e-05 | Q46: 9.223389622e-05 | R46: 9.223389622e-05 | S46: 9.223389622e-05 | T46: 9.223389622e-05 | V46: 50.04150525 | W46: 50.04150525 | X46: 50.04150525 | Y46: 50.04150525 | Z46: 50.04150525 | AA46: 50.04150525 | AZ46: 0 | BA46: 6 | BB46: 6 | BC46: 7 | BD46: -1.660103155 | BE46: 451.9357785 | BF46: -453.5958816 | BG46: =IF(ROUND(BF46,0)=0,1*ROWS($BF$40:BF46),FALSE) -> FALSE
F47: 60 | G47: 1.792717087 | H47: 4.622930522e-05 | I47: -1.205043821e-24 | J47: 6.058046984e-60 | K47: 1.16418643e-109 | L47: -9.176300634e-175 | M47: 1.545864213e-255 | O47: 4.622930522e-05 | P47: 4.622930522e-05 | Q47: 4.622930522e-05 | R47: 4.622930522e-05 | S47: 4.622930522e-05 | T47: 4.622930522e-05 | V47: 50.02080319 | W47: 50.02080319 | X47: 50.02080319 | Y47: 50.02080319 | Z47: 50.02080319 | AA47: 50.02080319 | AZ47: 0 | BA47: 7 | BB47: 8 | BC47: 8 | BD47: 1.877027092 | BE47: 514.952422 | BF47: -513.0753949 | BG47: =IF(ROUND(BF47,0)=0,1*ROWS($BF$40:BF47),FALSE) -> FALSE
F48: 64 | G48: 1.912231559 | H48: 2.317096804e-05 | I48: -3.165643353e-26 | J48: 7.905915774e-64 | K48: 7.145275916e-117 | L48: -2.507232779e-186 | M48: 1.779786127e-272 | O48: 2.317096804e-05 | P48: 2.317096804e-05 | Q48: 2.317096804e-05 | R48: 2.317096804e-05 | S48: 2.317096804e-05 | T48: 2.317096804e-05 | V48: 50.01042694 | W48: 50.01042694 | X48: 50.01042694 | Y48: 50.01042694 | Z48: 50.01042694 | AA48: 50.01042694 | AZ48: 1 | BA48: 8 | BB48: 8.650843891 | BC48: 9 | BD48: 2.349012488 | BE48: 2.349012137 | BF48: 3.513123228e-07 | BG48: =IF(ROUND(BF48,0)=0,1*ROWS($BF$40:BF48),FALSE) -> 9
F49: 68 | G49: 2.031746032 | H49: 1.161371033e-05 | I49: -8.316127316e-28 | J49: 1.031743471e-67 | K49: 4.385463239e-124 | L49: -6.85049069e-198 | M49: 2.049105368e-289 | O49: 1.161371033e-05 | P49: 1.161371033e-05 | Q49: 1.161371033e-05 | R49: 1.161371033e-05 | S49: 1.161371033e-05 | T49: 1.161371033e-05 | V49: 50.00522617 | W49: 50.00522617 | X49: 50.00522617 | Y49: 50.00522617 | Z49: 50.00522617 | AA49: 50.00522617 | AZ49: 0 | BA49: 9 | BB49: 9 | BC49: 10 | BD49: 2.207766705 | BE49: -271.0008331 | BF49: 273.2085998 | BG49: =IF(ROUND(BF49,0)=0,1*ROWS($BF$40:BF49),FALSE) -> FALSE
F50: 72 | G50: 2.151260504 | H50: 5.821002709e-06 | I50: -2.184641977e-29 | J50: 1.346453239e-71 | K50: 2.69160884e-131 | L50: -1.871753716e-209 | M50: 2.3591783e-306 | O50: 5.821002709e-06 | P50: 5.821002709e-06 | Q50: 5.821002709e-06 | R50: 5.821002709e-06 | S50: 5.821002709e-06 | T50: 5.821002709e-06 | V50: 50.00261945 | W50: 50.00261945 | X50: 50.00261945 | Y50: 50.00261945 | Z50: 50.00261945 | AA50: 50.00261945 | AZ50: 0 | BA50: 10 | BB50: 11 | BC50: 11 | BD50: -1.944628201 | BE50: -513.5709015 | BF50: 511.6262733 | BG50: =IF(ROUND(BF50,0)=0,1*ROWS($BF$40:BF50),FALSE) -> FALSE
F51: 76 | G51: 2.270774977 | H51: 2.91759236e-06 | I51: -5.73904221e-31 | J51: 1.757158029e-75 | K51: 1.651993815e-138 | L51: -5.114176678e-221 | M51: 0 | O51: 2.91759236e-06 | P51: 2.91759236e-06 | Q51: 2.91759236e-06 | R51: 2.91759236e-06 | S51: 2.91759236e-06 | T51: 2.91759236e-06 | V51: 50.00131292 | W51: 50.00131292 | X51: 50.00131292 | Y51: 50.00131292 | Z51: 50.00131292 | AA51: 50.00131292 | AZ51: 1 | BA51: 11 | BB51: 11.78760462 | BC51: 12 | BD51: -2.741027191 | BE51: -2.741027041 | BF51: -1.498911053e-07 | BG51: =IF(ROUND(BF51,0)=0,1*ROWS($BF$40:BF51),FALSE) -> 12
F52: 80 | G52: 2.390289449 | H52: 1.462350321e-06 | I52: =(2/H$5)*(((BESSELJ(H$5,1))*(BESSELJ((H$5*($B$25/$C$5)),0)))/((((BESSELJ(H$5,0))^2))+((BESSELJ(H$5,1))^2)))*(EXP(-(H$5^2*$G52))) -> -1.507643167e-32 | J52: =(2/I$5)*(((BESSELJ(I$5,1))*(BESSELJ((I$5*($B$25/$C$5)),0)))/((((BESSELJ(I$5,0))^2))+((BESSELJ(I$5,1))^2)))*(EXP(-(I$5^2*$G52))) -> 2.29313893e-79 | K52: =(2/J$5)*(((BESSELJ(J$5,1))*(BESSELJ((J$5*($B$25/$C$5)),0)))/((((BESSELJ(J$5,0))^2))+((BESSELJ(J$5,1))^2)))*(EXP(-(J$5^2*$G52))) -> 1.013922797e-145 | L52: =(2/K$5)*(((BESSELJ(K$5,1))*(BESSELJ((K$5*($B$25/$C$5)),0)))/((((BESSELJ(K$5,0))^2))+((BESSELJ(K$5,1))^2)))*(EXP(-(K$5^2*$G52))) -> -1.397342122e-232 | M52: =(2/L$5)*(((BESSELJ(L$5,1))*(BESSELJ((L$5*($B$25/$C$5)),0)))/((((BESSELJ(L$5,0))^2))+((BESSELJ(L$5,1))^2)))*(EXP(-(L$5^2*$G52))) -> 0 | O52: 1.462350321e-06 | P52: 1.462350321e-06 | Q52: 1.462350321e-06 | R52: 1.462350321e-06 | S52: 1.462350321e-06 | T52: 1.462350321e-06 | V52: 50.00065806 | W52: 50.00065806 | X52: 50.00065806 | Y52: 50.00065806 | Z52: 50.00065806 | AA52: 50.00065806 | AZ52: 0 | BA52: 12 | BB52: 12 | BC52: 13 | BD52: -2.681356615 | BE52: 143.067932 | BF52: -145.7492886 | BG52: =IF(ROUND(BF52,0)=0,1*ROWS($BF$40:BF52),FALSE) -> FALSE
AZ53: 0 | BA53: 13 | BB53: 14 | BC53: 14 | BD53: 1.867249856 | BE53: 513.2204285 | BF53: -511.3531786 | BG53: =IF(ROUND(BF53,0)=0,1*ROWS($BF$40:BF53),FALSE) -> FALSE
F54: =C24 -> r/R | G54: =($B26)/$C$5 -> 0.5 | AZ54: 1 | BA54: 14 | BB54: 14.92594166 | BC54: 15 | BD54: 3.083886924 | BE54: 3.083855705 | BF54: 3.121933017e-05 | BG54: =IF(ROUND(BF54,0)=0,1*ROWS($BF$40:BF54),FALSE) -> 15
F55: t, [s] | G55: Fo | H55: n=1 | I55: n=2 | J55: n=3 | K55: n=4 | L55: n=5 | M55: n=6 | O55: Q (r,t) | P55: Q (r,t) | Q55: Q (r,t) | R55: Q (r,t) | S55: Q (r,t) | T55: Q (r,t) | V55: T (r,t) | W55: T (r,t) | X55: T (r,t) | Y55: T (r,t) | Z55: T (r,t) | AA55: T (r,t) | AZ55: 0 | BA55: 15 | BB55: 15 | BC55: 16 | BD55: 3.076557964 | BE55: -42.67341812 | BF55: 45.74997608 | BG55: =IF(ROUND(BF55,0)=0,1*ROWS($BF$40:BF55),FALSE) -> FALSE
F56: =F32 -> 0 | G56: =($C$20*F56)/$C$5^2 -> 0 | H56: =(2/G$5)*(((BESSELJ(G$5,1)))/((((BESSELJ(G$5,0))^2))+((BESSELJ(G$5,1))^2)))*(EXP(-(G$5^2*$G56)))*((BESSELJ((G$5*($B$26/$C$5)),0))) -> 1.073530391 | I56: 0.1788994485 | J56: -0.3035617078 | K56: -0.08770362162 | L56: 0.1758621301 | M56: 0.05792026912 | O56: =((H56)) -> 1.073530391 | P56: =((H56+I56)) -> 1.252429839 | Q56: =((H56+I56+J56)) -> 0.9488681314 | R56: =((H56+I56+J56+K56)) -> 0.8611645098 | S56: =((H56+I56+J56+K56+L56)) -> 1.03702664 | T56: =((H56+I56+J56+K56+L56+M56)) -> 1.094946909 | V56: =((H56)*($B$8-$B$9))+$B$9 -> 533.0886758 | W56: =((H56+I56)*($B$8-$B$9))+$B$9 -> 613.5934276 | X56: =((H56+I56+J56)*($B$8-$B$9))+$B$9 -> 476.9906591 | Y56: =((H56+I56+J56+K56)*($B$8-$B$9))+$B$9 -> 437.5240294 | Z56: =((H56+I56+J56+K56+L56)*($B$8-$B$9))+$B$9 -> 516.6619879 | AA56: =((H56+I56+J56+K56+L56+M56)*($B$8-$B$9))+$B$9 -> 542.726109 | AZ56: 0 | BA56: 16 | BB56: 17 | BC56: 17 | BD56: -1.660363732 | BE56: -509.5627565 | BF56: 507.9023928 | BG56: =IF(ROUND(BF56,0)=0,1*ROWS($BF$40:BF56),FALSE) -> FALSE
F57: 4 | G57: 0.1195144725 | H57: 0.5380729442 | I57: 0.004699678468 | J57: -3.961562696e-05 | K57: -5.382871327e-09 | L57: 4.805065949e-13 | M57: 6.668482947e-19 | O57: 0.5380729442 | P57: 0.5427726227 | Q57: 0.5427330071 | R57: 0.5427330017 | S57: 0.5427330017 | T57: 0.5427330017 | V57: 292.1328249 | W57: 294.2476802 | X57: 294.2298532 | Y57: 294.2298508 | Z57: 294.2298508 | AA57: 294.2298508 | AZ57: 0 | BA57: 17 | BB57: 18 | BC57: 18 | BD57: -3.383906971 | BE57: -40.0674175 | BF57: 36.68351053 | BG57: =IF(ROUND(BF57,0)=0,1*ROWS($BF$40:BF57),FALSE) -> FALSE
F58: 8 | G58: 0.2390289449 | H58: 0.2696919396 | I58: 0.0001234602895 | J58: -5.169946864e-09 | K58: -3.303775053e-16 | L58: 1.312884062e-24 | M58: 7.677565296e-36 | O58: 0.2696919396 | P58: 0.2698153999 | Q58: 0.2698153947 | R58: 0.2698153947 | S58: 0.2698153947 | T58: 0.2698153947 | V58: 171.3613728 | W58: 171.41693 | X58: 171.4169276 | Y58: 171.4169276 | Z58: 171.4169276 | AA58: 171.4169276 | AZ58: 1 | BA58: 18 | BB58: 18.06504136 | BC58: 19 | BD58: -3.39239674 | BE58: -3.392395086 | BF58: -1.653961153e-06 | BG58: =IF(ROUND(BF58,0)=0,1*ROWS($BF$40:BF58),FALSE) -> 19
F59: 12 | G59: 0.3585434174 | H59: 0.135174502 | I59: 3.243294875e-06 | J59: -6.746921007e-13 | K59: -2.027715125e-23 | L59: 3.5871819e-36 | M59: 8.839343123e-53 | O59: 0.135174502 | P59: 0.1351777453 | Q59: 0.1351777453 | R59: 0.1351777453 | S59: 0.1351777453 | T59: 0.1351777453 | V59: 110.8285259 | W59: 110.8299854 | X59: 110.8299854 | Y59: 110.8299854 | Z59: 110.8299854 | AA59: 110.8299854 | AZ59: 0 | BA59: 19 | BB59: 19 | BC59: 20 | BD59: -2.008326766 | BE59: 439.8883187 | BF59: -441.8966455 | BG59: =IF(ROUND(BF59,0)=0,1*ROWS($BF$40:BF59),FALSE) -> FALSE
F60: 16 | G60: 0.4780578898 | H60: 0.06775191734 | I60: 8.52011743e-08 | J60: -8.804915075e-17 | K60: -1.244524388e-30 | L60: 9.801226444e-48 | M60: 1.017692248e-69 | O60: 0.06775191734 | P60: 0.06775200254 | Q60: 0.06775200254 | R60: 0.06775200254 | S60: 0.06775200254 | T60: 0.06775200254 | V60: 80.4883628 | W60: 80.48840114 | X60: 80.48840114 | Y60: 80.48840114 | Z60: 80.48840114 | AA60: 80.48840114 | AZ60: 0 | BA60: 20 | BB60: 21 | BC60: 21 | BD60: 3.593525319 | BE60: 109.7372133 | BF60: -106.143688 | BG60: =IF(ROUND(BF60,0)=0,1*ROWS($BF$40:BF60),FALSE) -> FALSE
F61: 20 | G61: 0.5975723623 | H61: 0.03395849242 | I61: 2.238230066e-09 | J61: -1.14906532e-20 | K61: -7.638355772e-38 | L61: 2.677980724e-59 | M61: 1.171690585e-86 | O61: 0.03395849242 | P61: 0.03395849466 | Q61: 0.03395849466 | R61: 0.03395849466 | S61: 0.03395849466 | T61: 0.03395849466 | V61: 65.28132159 | W61: 65.2813226 | X61: 65.2813226 | Y61: 65.2813226 | Z61: 65.2813226 | AA61: 65.2813226 | AZ61: 1 | BA61: 21 | BB61: 21.20456738 | BC61: 22 | BD61: 3.675160969 | BE61: 3.6751598 | BF61: 1.169084268e-06 | BG61: =IF(ROUND(BF61,0)=0,1*ROWS($BF$40:BF61),FALSE) -> 22
F62: 24 | G62: 0.7170868347 | H62: 0.01702061363 | I62: 5.879817818e-11 | J62: -1.499561437e-24 | K62: -4.688094461e-45 | L62: 7.31702384e-71 | M62: 1.348992124e-103 | O62: 0.01702061363 | P62: 0.01702061369 | Q62: 0.01702061369 | R62: 0.01702061369 | S62: 0.01702061369 | T62: 0.01702061369 | V62: 57.65927613 | W62: 57.65927616 | X62: 57.65927616 | Y62: 57.65927616 | Z62: 57.65927616 | AA62: 57.65927616 | AZ62: 0 | BA62: 22 | BB62: 22 | BC62: 23 | BD62: 2.577911147 | BE62: -361.9544269 | BF62: 364.532338 | BG62: =IF(ROUND(BF62,0)=0,1*ROWS($BF$40:BF62),FALSE) -> FALSE
F63: 28 | G63: 0.8366013072 | H63: 0.008531040917 | I63: 1.54462484e-12 | J63: -1.956968384e-28 | K63: -2.877350876e-52 | L63: 1.99922417e-82 | M63: 1.553123131e-120 | O63: 0.008531040917 | P63: 0.008531040918 | Q63: 0.008531040918 | R63: 0.008531040918 | S63: 0.008531040918 | T63: 0.008531040918 | V63: 53.83896841 | W63: 53.83896841 | X63: 53.83896841 | Y63: 53.83896841 | Z63: 53.83896841 | AA63: 53.83896841 | AZ63: 0 | BA63: 23 | BB63: 24 | BC63: 24 | BD63: -3.696913374 | BE63: -168.6908228 | BF63: 164.9939094 | BG63: =IF(ROUND(BF63,0)=0,1*ROWS($BF$40:BF63),FALSE) -> FALSE
F64: 32 | G64: 0.9561157796 | H64: 0.004275912767 | I64: 4.057720783e-14 | J64: -2.553896868e-32 | K64: -1.765994293e-59 | L64: 5.46246311e-94 | M64: 1.788143472e-137 | O64: 0.004275912767 | P64: 0.004275912767 | Q64: 0.004275912767 | R64: 0.004275912767 | S64: 0.004275912767 | T64: 0.004275912767 | V64: 51.92416075 | W64: 51.92416075 | X64: 51.92416075 | Y64: 51.92416075 | Z64: 51.92416075 | AA64: 51.92416075 | AZ64: 1 | BA64: 24 | BB64: 24.34435557 | BC64: 25 | BD64: -3.937702548 | BE64: -3.937701897 | BF64: -6.509960757e-07 | BG64: =IF(ROUND(BF64,0)=0,1*ROWS($BF$40:BF64),FALSE) -> 25
F65: 36 | G65: 1.075630252 | H65: 0.002143165197 | I65: 1.065960972e-15 | J65: -3.332904744e-36 | K65: -1.083891391e-66 | L65: 1.492504126e-105 | M65: 2.058727356e-154 | O65: 0.002143165197 | P65: 0.002143165197 | Q65: 0.002143165197 | R65: 0.002143165197 | S65: 0.002143165197 | T65: 0.002143165197 | V65: 50.96442434 | W65: 50.96442434 | X65: 50.96442434 | Y65: 50.96442434 | Z65: 50.96442434 | AA65: 50.96442434 | AZ65: 0 | BA65: 25 | BB65: 25 | BC65: 26 | BD65: -3.133756113 | BE65: 288.8003496 | BF65: -291.9341057 | BG65: =IF(ROUND(BF65,0)=0,1*ROWS($BF$40:BF65),FALSE) -> FALSE
F66: 40 | G66: 1.195144725 | H66: =(2/G$5)*(((BESSELJ(G$5,1)))/((((BESSELJ(G$5,0))^2))+((BESSELJ(G$5,1))^2)))*(EXP(-(G$5^2*$G66)))*((BESSELJ((G$5*($B$26/$C$5)),0))) -> 0.001074193351 | I66: 2.800273489e-17 | J66: -4.34953117e-40 | K66: -6.65245948e-74 | L66: 4.077956267e-117 | M66: 2.370256298e-171 | O66: 0.001074193351 | P66: 0.001074193351 | Q66: 0.001074193351 | R66: 0.001074193351 | S66: 0.001074193351 | T66: 0.001074193351 | V66: 50.48338701 | W66: 50.48338701 | X66: 50.48338701 | Y66: 50.48338701 | Z66: 50.48338701 | AA66: 50.48338701 | AZ66: 0 | BA66: 26 | BB66: 27 | BC66: 27 | BD66: 3.687787466 | BE66: 218.2257542 | BF66: -214.5379668 | BG66: =IF(ROUND(BF66,0)=0,1*ROWS($BF$40:BF66),FALSE) -> FALSE
F67: 44 | G67: 1.314659197 | H67: 0.0005384052319 | I67: 7.356302735e-19 | J67: -5.676256255e-44 | K67: -4.082993693e-81 | L67: 1.114216505e-128 | M67: 2.72892615e-188 | O67: 0.0005384052319 | P67: 0.0005384052319 | Q67: 0.0005384052319 | R67: 0.0005384052319 | S67: 0.0005384052319 | T67: 0.0005384052319 | V67: 50.24228235 | W67: 50.24228235 | X67: 50.24228235 | Y67: 50.24228235 | Z67: 50.24228235 | AA67: 50.24228235 | AZ67: 0 | BA67: 27 | BB67: 28 | BC67: 28 | BD67: 3.655441598 | BE67: -219.4710314 | BF67: 223.126473 | BG67: =IF(ROUND(BF67,0)=0,1*ROWS($BF$40:BF67),FALSE) -> FALSE
F68: 48 | G68: 1.434173669 | H68: 0.0002698584883 | I68: 1.932496599e-20 | J68: -7.407668508e-48 | K68: -2.505966033e-88 | L68: 3.044364233e-140 | M68: 3.141870329e-205 | O68: 0.0002698584883 | P68: 0.0002698584883 | Q68: 0.0002698584883 | R68: 0.0002698584883 | S68: 0.0002698584883 | T68: 0.0002698584883 | V68: 50.12143632 | W68: 50.12143632 | X68: 50.12143632 | Y68: 50.12143632 | Z68: 50.12143632 | AA68: 50.12143632 | AZ68: 0 | BA68: 28 | BB68: 29 | BC68: 29 | BD68: 0.2010919313 | BE68: -443.546294 | BF68: 443.7473859 | BG68: =IF(ROUND(BF68,0)=0,1*ROWS($BF$40:BF68),FALSE) -> FALSE
F69: 52 | G69: 1.553688142 | H69: 0.0001352579792 | I69: 5.076657716e-22 | J69: -9.667208501e-52 | K69: -1.538054239e-95 | L69: 8.318090371e-152 | M69: 3.617301685e-222 | O69: 0.0001352579792 | P69: 0.0001352579792 | Q69: 0.0001352579792 | R69: 0.0001352579792 | S69: 0.0001352579792 | T69: 0.0001352579792 | V69: 50.06086609 | W69: 50.06086609 | X69: 50.06086609 | Y69: 50.06086609 | Z69: 50.06086609 | AA69: 50.06086609 | AZ69: 0 | BA69: 29 | BB69: 30 | BC69: 30 | BD69: -3.562531827 | BE69: -259.1039509 | BF69: 255.5414191 | BG69: =IF(ROUND(BF69,0)=0,1*ROWS($BF$40:BF69),FALSE) -> FALSE
F70: 56 | G70: 1.673202614 | H70: 6.779375763e-05 | I70: 1.333635132e-23 | J70: -1.261596953e-55 | K70: -9.439915835e-103 | L70: 2.272744722e-163 | M70: 4.16467585e-239 | O70: 6.779375763e-05 | P70: 6.779375763e-05 | Q70: 6.779375763e-05 | R70: 6.779375763e-05 | S70: 6.779375763e-05 | T70: 6.779375763e-05 | V70: 50.03050719 | W70: 50.03050719 | X70: 50.03050719 | Y70: 50.03050719 | Z70: 50.03050719 | AA70: 50.03050719
F71: 60 | G71: 1.792717087 | H71: 3.397946354e-05 | I71: 3.503452005e-25 | J71: -1.646418273e-59 | K71: -5.793814592e-110 | L71: 6.209800977e-175 | M71: 4.794879289e-256 | O71: 3.397946354e-05 | P71: 3.397946354e-05 | Q71: 3.397946354e-05 | R71: 3.397946354e-05 | S71: 3.397946354e-05 | T71: 3.397946354e-05 | V71: 50.01529076 | W71: 50.01529076 | X71: 50.01529076 | Y71: 50.01529076 | Z71: 50.01529076 | AA71: 50.01529076
F72: 64 | G72: 1.912231559 | H72: 1.703112473e-05 | I72: 9.20354875e-27 | J72: -2.148620542e-63 | K72: -3.555994367e-117 | L72: 1.696698613e-186 | M72: 5.520445823e-273 | O72: 1.703112473e-05 | P72: 1.703112473e-05 | Q72: 1.703112473e-05 | R72: 1.703112473e-05 | S72: 1.703112473e-05 | T72: 1.703112473e-05 | V72: 50.00766401 | W72: 50.00766401 | X72: 50.00766401 | Y72: 50.00766401 | Z72: 50.00766401 | AA72: 50.00766401
F73: 68 | G73: 2.031746032 | H73: 8.536309273e-06 | I73: 2.41776709e-28 | J73: -2.804008137e-67 | K73: -2.182516498e-124 | L73: 4.635875117e-198 | M73: 6.355805902e-290 | O73: 8.536309273e-06 | P73: 8.536309273e-06 | Q73: 8.536309273e-06 | R73: 8.536309273e-06 | S73: 8.536309273e-06 | T73: 8.536309273e-06 | V73: 50.00384134 | W73: 50.00384134 | X73: 50.00384134 | Y73: 50.00384134 | Z73: 50.00384134 | AA73: 50.00384134
F74: 72 | G74: 2.151260504 | H74: 4.278553363e-06 | I74: 6.351460573e-30 | J74: -3.659306739e-71 | K74: -1.339534818e-131 | L74: 1.266656196e-209 | M74: 7.317573608e-307 | O74: 4.278553363e-06 | P74: 4.278553363e-06 | Q74: 4.278553363e-06 | R74: 4.278553363e-06 | S74: 4.278553363e-06 | T74: 4.278553363e-06 | V74: 50.00192535 | W74: 50.00192535 | X74: 50.00192535 | Y74: 50.00192535 | Z74: 50.00192535 | AA74: 50.00192535
F75: 76 | G75: 2.270774977 | H75: 2.144488712e-06 | I75: 1.668525127e-31 | J75: -4.775494635e-75 | K75: -8.221488951e-139 | L75: 3.460873897e-221 | M75: 0 | O75: 2.144488712e-06 | P75: 2.144488712e-06 | Q75: 2.144488712e-06 | R75: 2.144488712e-06 | S75: 2.144488712e-06 | T75: 2.144488712e-06 | V75: 50.00096502 | W75: 50.00096502 | X75: 50.00096502 | Y75: 50.00096502 | Z75: 50.00096502 | AA75: 50.00096502
F76: 80 | G76: 2.390289449 | H76: =(2/G$5)*(((BESSELJ(G$5,1)))/((((BESSELJ(G$5,0))^2))+((BESSELJ(G$5,1))^2)))*(EXP(-(G$5^2*$G76)))*((BESSELJ((G$5*($B$26/$C$5)),0))) -> 1.074856721e-06 | I76: 4.383206141e-33 | J76: -6.232150141e-79 | K76: -5.045996542e-146 | L76: 9.456116165e-233 | M76: 0 | O76: 1.074856721e-06 | P76: 1.074856721e-06 | Q76: 1.074856721e-06 | R76: 1.074856721e-06 | S76: 1.074856721e-06 | T76: 1.074856721e-06 | V76: 50.00048369 | W76: 50.00048369 | X76: 50.00048369 | Y76: 50.00048369 | Z76: 50.00048369 | AA76: 50.00048369
F78: r/R | G78: =($B27)/$C$5 -> 0.75
F79: t, [s] | G79: Fo | H79: n=1 | I79: n=2 | J79: n=3 | K79: n=4 | L79: n=5 | M79: n=6 | O79: Q (r,t) | P79: Q (r,t) | Q79: Q (r,t) | R79: Q (r,t) | S79: Q (r,t) | T79: Q (r,t) | V79: T (r,t) | W79: T (r,t) | X79: T (r,t) | Y79: T (r,t) | Z79: T (r,t) | AA79: T (r,t)
F80: =F56 -> 0 | G80: =($C$20*F80)/$C$5^2 -> 0 | H80: =(2/G$5)*(((BESSELJ(G$5,1))*(BESSELJ((G$5*($B$27/$C$5)),0)))/((((BESSELJ(G$5,0))^2))+((BESSELJ(G$5,1))^2)))*(EXP(-(G$5^2*$G80))) -> 0.5418377818 | I80: 0.4093135905 | J80: 0.2198769561 | K80: 0.0364254374 | L80: -0.0869791676 | M80: -0.1255006563 | O80: =((H80)) -> 0.5418377818 | P80: =((H80+I80)) -> 0.9511513724 | Q80: =((H80+I80+J80)) -> 1.171028328 | R80: =((H80+I80+J80+K80)) -> 1.207453766 | S80: =((H80+I80+J80+K80+L80)) -> 1.120474598 | T80: =((H80+I80+J80+K80+L80+M80)) -> 0.9949739419 | V80: =((H80)*($B$8-$B$9))+$B$9 -> 293.8270018 | W80: =((H80+I80)*($B$8-$B$9))+$B$9 -> 478.0181176 | X80: =((H80+I80+J80)*($B$8-$B$9))+$B$9 -> 576.9627478 | Y80: =((H80+I80+J80+K80)*($B$8-$B$9))+$B$9 -> 593.3541946 | Z80: =((H80+I80+J80+K80+L80)*($B$8-$B$9))+$B$9 -> 554.2135692 | AA80: =((H80+I80+J80+K80+L80+M80)*($B$8-$B$9))+$B$9 -> 497.7382739
F81: 4 | G81: 0.1195144725 | H81: 0.2715789446 | I81: 0.01075264505 | J81: 2.869453968e-05 | K81: 2.235636783e-09 | L81: -2.376524362e-13 | M81: -1.44491557e-18 | O81: 0.2715789446 | P81: 0.2823315897 | Q81: 0.2823602842 | R81: 0.2823602865 | S81: 0.2823602865 | T81: 0.2823602865 | V81: 172.2105251 | W81: 177.0492154 | X81: 177.0621279 | Y81: 177.0621289 | Z81: 177.0621289 | AA81: 177.0621289
F82: 8 | G82: 0.2390289449 | H82: 0.1361203033 | I82: 0.0002824713817 | J82: 3.744715326e-09 | K82: 1.372137765e-16 | L82: -6.4933572e-25 | M82: -1.663561821e-35 | O82: 0.1361203033 | P82: 0.1364027746 | Q82: 0.1364027784 | R82: 0.1364027784 | S82: 0.1364027784 | T82: 0.1364027784 | V82: 111.2541365 | W82: 111.3812486 | X82: 111.3812503 | Y82: 111.3812503 | Z82: 111.3812503 | AA82: 111.3812503
F83: 12 | G83: 0.3585434174 | H83: 0.0682259701 | I83: 7.42050734e-06 | J83: 4.886955159e-13 | K83: 8.421591831e-24 | L83: -1.774174437e-36 | M83: -1.915293869e-52 | O83: 0.0682259701 | P83: 0.06823339061 | Q83: 0.06823339061 | R83: 0.06823339061 | S83: 0.06823339061 | T83: 0.06823339061 | V83: 80.70168655 | W83: 80.70502577 | X83: 80.70502577 | Y83: 80.70502577 | Z83: 80.70502577 | AA83: 80.70502577
F84: 16 | G84: 0.4780578898 | H84: 0.03419609628 | I84: 1.949363113e-07 | J84: 6.37760915e-17 | K84: 5.168811088e-31 | L84: -4.84756165e-48 | M84: -2.205118295e-69 | O84: 0.03419609628 | P84: 0.03419629122 | Q84: 0.03419629122 | R84: 0.03419629122 | S84: 0.03419629122 | T84: 0.03419629122 | V84: 65.38824333 | W84: 65.38833105 | X84: 65.38833105 | Y84: 65.38833105 | Z84: 65.38833105 | AA84: 65.38833105
F85: 20 | G85: 0.5975723623 | H85: 0.017139705 | I85: 5.120965953e-09 | J85: 8.322953076e-21 | K85: 3.17239408e-38 | L85: -1.324495126e-59 | M85: -2.538799278e-86 | O85: 0.017139705 | P85: 0.01713971012 | Q85: 0.01713971012 | R85: 0.01713971012 | S85: 0.01713971012 | T85: 0.01713971012 | V85: 57.71286725 | W85: 57.71286956 | X85: 57.71286956 | Y85: 57.71286956 | Z85: 57.71286956 | AA85: 57.71286956
F86: 24 | G86: 0.7170868347 | H86: 0.008590731678 | I86: 1.345274881e-10 | J86: 1.086167971e-24 | K86: 1.94707913e-45 | L86: -3.618906712e-71 | M86: -2.922973244e-103 | O86: 0.008590731678 | P86: 0.008590731812 | Q86: 0.008590731812 | R86: 0.008590731812 | S86: 0.008590731812 | T86: 0.008590731812 | V86: 53.86582925 | W86: 53.86582932 | X86: 53.86582932 | Y86: 53.86582932 | Z86: 53.86582932 | AA86: 53.86582932
F87: 28 | G87: 0.8366013072 | H87: 0.004305830861 | I87: 3.534029561e-12 | J87: 1.417478689e-28 | K87: 1.195033481e-52 | L87: -9.887907875e-83 | M87: -3.365280847e-120 | O87: 0.004305830861 | P87: 0.004305830865 | Q87: 0.004305830865 | R87: 0.004305830865 | S87: 0.004305830865 | T87: 0.004305830865 | V87: 51.93762389 | W87: 51.93762389 | X87: 51.93762389 | Y87: 51.93762389 | Z87: 51.93762389 | AA87: 51.93762389
F88: 32 | G88: 0.9561157796 | H88: 0.00215816069 | I88: 9.283875816e-14 | J88: 1.849848169e-32 | K88: 7.334601854e-60 | L88: -2.701664617e-94 | M88: -3.874518935e-137 | O88: 0.00215816069 | P88: 0.00215816069 | Q88: 0.00215816069 | R88: 0.00215816069 | S88: 0.00215816069 | T88: 0.00215816069 | V88: 50.97117231 | W88: 50.97117231 | X88: 50.97117231 | Y88: 50.97117231 | Z88: 50.97117231 | AA88: 50.97117231
F89: 36 | G89: 1.075630252 | H89: 0.001081709364 | I89: 2.438868965e-15 | J89: 2.414102079e-36 | K89: 4.501663362e-67 | L89: -7.381735139e-106 | M89: -4.460815503e-154 | O89: 0.001081709364 | P89: 0.001081709364 | Q89: 0.001081709364 | R89: 0.001081709364 | S89: 0.001081709364 | T89: 0.001081709364 | V89: 50.48676921 | W89: 50.48676921 | X89: 50.48676921 | Y89: 50.48676921 | Z89: 50.48676921 | AA89: 50.48676921
F90: 40 | G90: 1.195144725 | H90: =(2/G$5)*(((BESSELJ(G$5,1))*(BESSELJ((G$5*($B$27/$C$5)),0)))/((((BESSELJ(G$5,0))^2))+((BESSELJ(G$5,1))^2)))*(EXP(-(G$5^2*$G90))) -> 0.0005421723945 | I90: 6.40689508e-17 | J90: 3.15046875e-40 | K90: 2.762927481e-74 | L90: -2.016905182e-117 | M90: -5.135831129e-171 | O90: 0.0005421723945 | P90: 0.0005421723945 | Q90: 0.0005421723945 | R90: 0.0005421723945 | S90: 0.0005421723945 | T90: 0.0005421723945 | V90: 50.24397758 | W90: 50.24397758 | X90: 50.24397758 | Y90: 50.24397758 | Z90: 50.24397758 | AA90: 50.24397758
F91: 44 | G91: 1.314659197 | H91: 0.0002717466586 | I91: 1.683087741e-18 | J91: 4.111447245e-44 | K91: 1.695766131e-81 | L91: -5.51077279e-129 | M91: -5.912990879e-188 | O91: 0.0002717466586 | P91: 0.0002717466586 | Q91: 0.0002717466586 | R91: 0.0002717466586 | S91: 0.0002717466586 | T91: 0.0002717466586 | V91: 50.122286 | W91: 50.122286 | X91: 50.122286 | Y91: 50.122286 | Z91: 50.122286 | AA91: 50.122286
F92: 48 | G92: 1.434173669 | H92: 0.0001362043645 | I92: 4.421462046e-20 | J92: 5.36555027e-48 | K92: 1.040788364e-88 | L92: -1.505703739e-140 | M92: -6.807751318e-205 | O92: 0.0001362043645 | P92: 0.0001362043645 | Q92: 0.0001362043645 | R92: 0.0001362043645 | S92: 0.0001362043645 | T92: 0.0001362043645 | V92: 50.06129196 | W92: 50.06129196 | X92: 50.06129196 | Y92: 50.06129196 | Z92: 50.06129196 | AA92: 50.06129196
F93: 52 | G93: 1.553688142 | H93: 6.826810315e-05 | I93: 1.161515597e-21 | J93: 7.002188763e-52 | K93: 6.387911626e-96 | L93: -4.114021456e-152 | M93: -7.837907914e-222 | O93: 6.826810315e-05 | P93: 6.826810315e-05 | Q93: 6.826810315e-05 | R93: 6.826810315e-05 | S93: 6.826810315e-05 | T93: 6.826810315e-05 | V93: 50.03072065 | W93: 50.03072065 | X93: 50.03072065 | Y93: 50.03072065 | Z93: 50.03072065 | AA93: 50.03072065
F94: 56 | G94: 1.673202614 | H94: 3.421721413e-05 | I94: 3.051294954e-23 | J94: 9.138046426e-56 | K94: 3.92062559e-103 | L94: -1.124070566e-163 | M94: -9.023948966e-239 | O94: 3.421721413e-05 | P94: 3.421721413e-05 | Q94: 3.421721413e-05 | R94: 3.421721413e-05 | S94: 3.421721413e-05 | T94: 3.421721413e-05 | V94: 50.01539775 | W94: 50.01539775 | X94: 50.01539775 | Y94: 50.01539775 | Z94: 50.01539775 | AA94: 50.01539775
F95: 60 | G95: 1.792717087 | H95: 1.715028965e-05 | I95: 8.015734715e-25 | J95: 1.192539866e-59 | K95: 2.406311471e-110 | L95: -3.071288399e-175 | M95: -1.038946309e-255 | O95: 1.715028965e-05 | P95: 1.715028965e-05 | Q95: 1.715028965e-05 | R95: 1.715028965e-05 | S95: 1.715028965e-05 | T95: 1.715028965e-05 | V95: 50.00771763 | W95: 50.00771763 | X95: 50.00771763 | Y95: 50.00771763 | Z95: 50.00771763 | AA95: 50.00771763
F96: 64 | G96: 1.912231559 | H96: 8.596036896e-06 | I96: 2.10572901e-26 | J96: 1.556296899e-63 | K96: 1.476890553e-117 | L96: -8.391655039e-187 | M96: -1.196160834e-272 | O96: 8.596036896e-06 | P96: 8.596036896e-06 | Q96: 8.596036896e-06 | R96: 8.596036896e-06 | S96: 8.596036896e-06 | T96: 8.596036896e-06 | V96: 50.00386822 | W96: 50.00386822 | X96: 50.00386822 | Y96: 50.00386822 | Z96: 50.00386822 | AA96: 50.00386822
F97: 68 | G97: 2.031746032 | H97: 4.308489933e-06 | I97: 5.531738287e-28 | J97: 2.031009703e-67 | K97: 9.064519413e-125 | L97: -2.292844733e-198 | M97: -1.377165238e-289 | O97: 4.308489933e-06 | P97: 4.308489933e-06 | Q97: 4.308489933e-06 | R97: 4.308489933e-06 | S97: 4.308489933e-06 | T97: 4.308489933e-06 | V97: 50.00193882 | W97: 50.00193882 | X97: 50.00193882 | Y97: 50.00193882 | Z97: 50.00193882 | AA97: 50.00193882
F98: 72 | G98: 2.151260504 | H98: 2.159493465e-06 | I98: 1.453184543e-29 | J98: 2.650522798e-71 | K98: 5.563412404e-132 | L98: -6.264720067e-210 | M98: -1.585559433e-306 | O98: 2.159493465e-06 | P98: 2.159493465e-06 | Q98: 2.159493465e-06 | R98: 2.159493465e-06 | S98: 2.159493465e-06 | T98: 2.159493465e-06 | V98: 50.00097177 | W98: 50.00097177 | X98: 50.00097177 | Y98: 50.00097177 | Z98: 50.00097177 | AA98: 50.00097177
F99: 76 | G99: 2.270774977 | H99: 1.082377376e-06 | I99: 3.817507636e-31 | J99: 3.459004207e-75 | K99: 3.414583407e-139 | L99: -1.711704109e-221 | M99: 0 | O99: 1.082377376e-06 | P99: 1.082377376e-06 | Q99: 1.082377376e-06 | R99: 1.082377376e-06 | S99: 1.082377376e-06 | T99: 1.082377376e-06 | V99: 50.00048707 | W99: 50.00048707 | X99: 50.00048707 | Y99: 50.00048707 | Z99: 50.00048707 | AA99: 50.00048707
F100: 80 | G100: 2.390289449 | H100: =(2/G$5)*(((BESSELJ(G$5,1))*(BESSELJ((G$5*($B$27/$C$5)),0)))/((((BESSELJ(G$5,0))^2))+((BESSELJ(G$5,1))^2)))*(EXP(-(G$5^2*$G100))) -> 5.425072139e-07 | I100: 1.002857113e-32 | J100: 4.514094392e-79 | K100: 2.095724529e-146 | L100: -4.676874506e-233 | M100: 0 | O100: 5.425072139e-07 | P100: 5.425072139e-07 | Q100: 5.425072139e-07 | R100: 5.425072139e-07 | S100: 5.425072139e-07 | T100: 5.425072139e-07 | V100: 50.00024413 | W100: 50.00024413 | X100: 50.00024413 | Y100: 50.00024413 | Z100: 50.00024413 | AA100: 50.00024413
F102: =C24 -> r/R | G102: =($B28)/$C$5 -> 1
F103: t, [s] | G103: Fo | H103: n=1 | I103: n=2 | J103: n=3 | K103: n=4 | L103: n=5 | M103: n=6 | O103: Q (r,t) | P103: Q (r,t) | Q103: Q (r,t) | R103: Q (r,t) | S103: Q (r,t) | T103: Q (r,t) | V103: T (r,t) | W103: T (r,t) | X103: T (r,t) | Y103: T (r,t) | Z103: T (r,t) | AA103: T (r,t)
F104: =F80 -> 0 | G104: =($C$20*F104)/$C$5^2 -> 0 | H104: =(2/G$5)*(((BESSELJ(G$5,1))*(BESSELJ((G$5*($B$28/$C$5)),0)))/((((BESSELJ(G$5,0))^2))+((BESSELJ(G$5,1))^2)))*(EXP(-(G$5^2*$G104))) -> 0.0006666661685 | I104: 0.0006666643169 | J104: 0.0006666610235 | K104: 0.000666656338 | L104: 0.0006666434162 | M104: 0.0006666421688 | O104: =((H104)) -> 0.0006666661685 | P104: =((H104+I104)) -> 0.001333330485 | Q104: =((H104+I104+J104)) -> 0.001999991509 | R104: =((H104+I104+J104+K104)) -> 0.002666647847 | S104: =((H104+I104+J104+K104+L104)) -> 0.003333291263 | T104: =((H104+I104+J104+K104+L104+M104)) -> 0.003999933432 | V104: =((H104)*($B$8-$B$9))+$B$9 -> 50.29999978 | W104: =((H104+I104)*($B$8-$B$9))+$B$9 -> 50.59999872 | X104: =((H104+I104+J104)*($B$8-$B$9))+$B$9 -> 50.89999618 | Y104: =((H104+I104+J104+K104)*($B$8-$B$9))+$B$9 -> 51.19999153 | Z104: =((H104+I104+J104+K104+L104)*($B$8-$B$9))+$B$9 -> 51.49998107 | AA104: =((H104+I104+J104+K104+L104+M104)*($B$8-$B$9))+$B$9 -> 51.79997004
F105: 4 | G105: 0.1195144725 | H105: 0.0003341452009 | I105: 1.751323418e-05 | J105: 8.700107337e-08 | K105: 4.09165006e-11 | L105: 1.821464108e-15 | M105: 7.675192125e-21 | O105: =((H105)) -> 0.0003341452009 | P105: 0.0003516584351 | Q105: 0.0003517454362 | R105: 0.0003517454771 | S105: 0.0003517454771 | T105: 0.0003517454771 | V105: 50.15036534 | W105: 50.1582463 | X105: 50.15828545 | Y105: 50.15828546 | Z105: 50.15828546 | AA105: 50.15828546
F106: 8 | G106: 0.2390289449 | H106: 0.0001674796481 | I106: 4.600716787e-07 | J106: 1.135387626e-11 | K106: 2.511278939e-18 | L106: 4.976770812e-27 | M106: 8.836610841e-38 | O106: 0.0001674796481 | P106: 0.0001679397198 | Q106: 0.0001679397311 | R106: 0.0001679397311 | S106: 0.0001679397311 | T106: 0.0001679397311 | V106: 50.07536584 | W106: 50.07557287 | X106: 50.07557288 | Y106: 50.07557288 | Z106: 50.07557288 | AA106: 50.07557288
F107: 12 | G107: 0.3585434174 | H107: 8.394384372e-05 | I107: 1.208605717e-08 | J107: 1.481711675e-15 | K107: 1.541315073e-25 | L107: 1.359798835e-38 | M107: 1.017377674e-54 | O107: 8.394384372e-05 | P107: 8.395592978e-05 | Q107: 8.395592978e-05 | R107: 8.395592978e-05 | S107: 8.395592978e-05 | T107: 8.395592978e-05 | V107: 50.03777473 | W107: 50.03778017 | X107: 50.03778017 | Y107: 50.03778017 | Z107: 50.03778017 | AA107: 50.03778017
F108: 16 | G108: 0.4780578898 | H108: 4.207418023e-05 | I108: 3.175000434e-10 | J108: 1.93367396e-19 | K108: 9.459929429e-33 | L108: 3.715366734e-50 | M108: 1.17132841e-71 | O108: 4.207418023e-05 | P108: 4.207449773e-05 | Q108: 4.207449773e-05 | R108: 4.207449773e-05 | S108: 4.207449773e-05 | T108: 4.207449773e-05 | V108: 50.01893338 | W108: 50.01893352 | X108: 50.01893352 | Y108: 50.01893352 | Z108: 50.01893352 | AA108: 50.01893352
F109: 20 | G109: 0.5975723623 | H109: 2.108834387e-05 | I109: 8.340708317e-12 | J109: 2.523497012e-23 | K109: 5.806098076e-40 | L109: 1.015146477e-61 | M109: 1.348575144e-88 | O109: 2.108834387e-05 | P109: 2.108835221e-05 | Q109: 2.108835221e-05 | R109: 2.108835221e-05 | S109: 2.108835221e-05 | T109: 2.108835221e-05 | V109: 50.00948975 | W109: 50.00948976 | X109: 50.00948976 | Y109: 50.00948976 | Z109: 50.00948976 | AA109: 50.00948976
F110: 24 | G110: 0.7170868347 | H110: 1.056986125e-05 | I110: 2.191099393e-13 | J110: 3.293232106e-27 | K110: 3.563533441e-47 | L110: 2.773676042e-73 | M110: 1.552643053e-105 | O110: 1.056986125e-05 | P110: 1.056986147e-05 | Q110: 1.056986147e-05 | R110: 1.056986147e-05 | S110: 1.056986147e-05 | T110: 1.056986147e-05 | V110: 50.00475644 | W110: 50.00475644 | X110: 50.00475644 | Y110: 50.00475644 | Z110: 50.00475644 | AA110: 50.00475644
F111: 28 | G111: 0.8366013072 | H111: 5.297806574e-06 | I111: 5.756005804e-15 | J111: 4.297757301e-31 | K111: 2.187143658e-54 | L111: 7.57849134e-85 | M111: 1.787590749e-122 | O111: 5.297806574e-06 | P111: 5.297806579e-06 | Q111: 5.297806579e-06 | R111: 5.297806579e-06 | S111: 5.297806579e-06 | T111: 5.297806579e-06 | V111: 50.00238401 | W111: 50.00238401 | X111: 50.00238401 | Y111: 50.00238401 | Z111: 50.00238401 | AA111: 50.00238401
F112: 32 | G112: 0.9561157796 | H112: 2.655356947e-06 | I112: 1.512099493e-16 | J112: 5.60868995e-35 | K112: 1.342374769e-61 | L112: 2.070664711e-96 | M112: 2.058090994e-139 | O112: 2.655356947e-06 | P112: 2.655356947e-06 | Q112: 2.655356947e-06 | R112: 2.655356947e-06 | S112: 2.655356947e-06 | T112: 2.655356947e-06 | V112: 50.00119491 | W112: 50.00119491 | X112: 50.00119491 | Y112: 50.00119491 | Z112: 50.00119491 | AA112: 50.00119491
F113: 36 | G113: 1.075630252 | H113: 1.330913165e-06 | I113: 3.97227688e-18 | J113: 7.319492646e-39 | K113: 8.238919354e-69 | L113: 5.65765949e-108 | M113: 2.369523641e-156 | O113: 1.330913165e-06 | P113: 1.330913165e-06 | Q113: 1.330913165e-06 | R113: 1.330913165e-06 | S113: 1.330913165e-06 | T113: 1.330913165e-06 | V113: 50.00059891 | W113: 50.00059891 | X113: 50.00059891 | Y113: 50.00059891 | Z113: 50.00059891 | AA113: 50.00059891
F114: 40 | G114: 1.195144725 | H114: =(2/G$5)*(((BESSELJ(G$5,1))*(BESSELJ((G$5*($B$28/$C$5)),0)))/((((BESSELJ(G$5,0))^2))+((BESSELJ(G$5,1))^2)))*(EXP(-(G$5^2*$G114))) -> 6.670778691e-07 | I114: 1.043514907e-19 | J114: 9.552136607e-43 | K114: 5.056694574e-76 | L114: 1.545837467e-119 | M114: 2.728082627e-173 | O114: 6.670778691e-07 | P114: 6.670778691e-07 | Q114: 6.670778691e-07 | R114: 6.670778691e-07 | S114: 6.670778691e-07 | T114: 6.670778691e-07 | V114: 50.00030019 | W114: 50.00030019 | X114: 50.00030019 | Y114: 50.00030019 | Z114: 50.00030019 | AA114: 50.00030019
F115: 44 | G115: 1.314659197 | H115: 3.343515527e-07 | I115: 2.741307801e-21 | J115: 1.246579759e-46 | K115: 3.103581782e-83 | L115: 4.223678496e-131 | M115: 3.140899162e-190 | O115: 3.343515527e-07 | P115: 3.343515527e-07 | Q115: 3.343515527e-07 | R115: 3.343515527e-07 | S115: 3.343515527e-07 | T115: 3.343515527e-07 | V115: 50.00015046 | W115: 50.00015046 | X115: 50.00015046 | Y115: 50.00015046 | Z115: 50.00015046 | AA115: 50.00015046
F116: 48 | G116: 1.434173669 | H116: 1.675830754e-07 | I116: 7.201400205e-23 | J116: 1.626820426e-50 | K116: 1.9048451e-90 | L116: 1.154032065e-142 | M116: 3.61618356e-207 | O116: 1.675830754e-07 | P116: 1.675830754e-07 | Q116: 1.675830754e-07 | R116: 1.675830754e-07 | S116: 1.675830754e-07 | T116: 1.675830754e-07 | V116: 50.00007541 | W116: 50.00007541 | X116: 50.00007541 | Y116: 50.00007541 | Z116: 50.00007541 | AA116: 50.00007541
F117: 52 | G117: 1.553688142 | H117: 8.399568336e-08 | I117: 1.891803791e-24 | J117: 2.12304482e-54 | K117: 1.169112048e-97 | L117: 3.153151948e-154 | M117: 4.163388529e-224 | O117: 8.399568336e-08 | P117: 8.399568336e-08 | Q117: 8.399568336e-08 | R117: 8.399568336e-08 | S117: 8.399568336e-08 | T117: 8.399568336e-08 | V117: 50.0000378 | W117: 50.0000378 | X117: 50.0000378 | Y117: 50.0000378 | Z117: 50.0000378 | AA117: 50.0000378
F118: 56 | G118: 1.673202614 | H118: 4.21001632e-08 | I118: 4.969757939e-26 | J118: 2.770631125e-58 | K118: 7.175507242e-105 | L118: 8.615330114e-166 | M118: 4.79339717e-241 | O118: 4.21001632e-08 | P118: 4.21001632e-08 | Q118: 4.21001632e-08 | R118: 4.21001632e-08 | S118: 4.21001632e-08 | T118: 4.21001632e-08 | V118: 50.00001895 | W118: 50.00001895 | X118: 50.00001895 | Y118: 50.00001895 | Z118: 50.00001895 | AA118: 50.00001895
F119: 60 | G119: 1.792717087 | H119: 2.1101367e-08 | I119: 1.305552621e-27 | J119: 3.615748834e-62 | K119: 4.404017927e-112 | L119: 2.353959283e-177 | M119: 5.518739428e-258 | O119: 2.1101367e-08 | P119: 2.1101367e-08 | Q119: 2.1101367e-08 | R119: 2.1101367e-08 | S119: 2.1101367e-08 | T119: 2.1101367e-08 | V119: 50.0000095 | W119: 50.0000095 | X119: 50.0000095 | Y119: 50.0000095 | Z119: 50.0000095 | AA119: 50.0000095
F120: 64 | G120: 1.912231559 | H120: 1.057638868e-08 | I120: 3.429679405e-29 | J120: 4.718650386e-66 | K120: 2.70299691e-119 | L120: 6.431702828e-189 | M120: 6.353841293e-275 | O120: 1.057638868e-08 | P120: 1.057638868e-08 | Q120: 1.057638868e-08 | R120: 1.057638868e-08 | S120: 1.057638868e-08 | T120: 1.057638868e-08 | V120: 50.00000476 | W120: 50.00000476 | X120: 50.00000476 | Y120: 50.00000476 | Z120: 50.00000476 | AA120: 50.00000476
F121: 68 | G121: 2.031746032 | H121: 5.301078242e-09 | I121: 9.009748544e-31 | J121: 6.157966852e-70 | K121: 1.658983323e-126 | L121: 1.757328666e-200 | M121: 7.315311712e-292 | O121: 5.301078242e-09 | P121: 5.301078242e-09 | Q121: 5.301078242e-09 | R121: 5.301078242e-09 | S121: 5.301078242e-09 | T121: 5.301078242e-09 | V121: 50.00000239 | W121: 50.00000239 | X121: 50.00000239 | Y121: 50.00000239 | Z121: 50.00000239 | AA121: 50.00000239
F122: 72 | G122: 2.151260504 | H122: 2.656996767e-09 | I122: 2.366855885e-32 | J122: 8.036313914e-74 | K122: 1.018212657e-133 | L122: 4.801534093e-212 | M122: 0 | O122: 2.656996767e-09 | P122: 2.656996767e-09 | Q122: 2.656996767e-09 | R122: 2.656996767e-09 | S122: 2.656996767e-09 | T122: 2.656996767e-09 | V122: 50.0000012 | W122: 50.0000012 | X122: 50.0000012 | Y122: 50.0000012 | Z122: 50.0000012 | AA122: 50.0000012
F123: 76 | G123: 2.270774977 | H123: 1.331735073e-09 | I123: 6.217717122e-34 | J123: 1.048760782e-77 | K123: 6.249351641e-141 | L123: 1.311919056e-223 | M123: 0 | O123: 1.331735073e-09 | P123: 1.331735073e-09 | Q123: 1.331735073e-09 | R123: 1.331735073e-09 | S123: 1.331735073e-09 | T123: 1.331735073e-09 | V123: 50.0000006 | W123: 50.0000006 | X123: 50.0000006 | Y123: 50.0000006 | Z123: 50.0000006 | AA123: 50.0000006
F124: 80 | G124: 2.390289449 | H124: =(2/G$5)*(((BESSELJ(G$5,1))*(BESSELJ((G$5*($B$28/$C$5)),0)))/((((BESSELJ(G$5,0))^2))+((BESSELJ(G$5,1))^2)))*(EXP(-(G$5^2*$G124))) -> 6.67489824e-10 | I124: 1.633390797e-35 | J124: 1.368661292e-81 | K124: 3.835583427e-148 | L124: 3.584545223e-235 | M124: 0 | O124: 6.67489824e-10 | P124: 6.67489824e-10 | Q124: 6.67489824e-10 | R124: 6.67489824e-10 | S124: 6.67489824e-10 | T124: 6.67489824e-10 | V124: 50.0000003 | W124: 50.0000003 | X124: 50.0000003 | Y124: 50.0000003 | Z124: 50.0000003 | AA124: 50.0000003
